[Event "Blixt-SM 2021"]
[Site "Elite Hotel Marina Plaza, Kungstorget 6, Helsingborg, Sweden"]
[Date "2021.11.14"]
[Round "1.6"]
[White "Abedinov, Adnan"]
[Black "Derdic, Valentin"]
[Result "1-0"]
[TimeControl "3 minutes + 2 seconds per move."]
[WhiteFideId "1703544"]
[BlackFideId "1763687"]
[WhiteElo "2170"]
[BlackElo "1748"]

1. e4 {[%clk 00:03:03]} {[%emt 00:29:58]} c5 {[%clk 00:03:03]} {[%emt
00:00:02]} 2. Nf3 {[%clk 00:03:04]} d6 {[%clk 00:03:04]} 3. c3 {[%clk
00:03:05]} {[%emt 00:00:02]} Nc6 {[%clk 00:03:03]} {[%emt 00:00:03]} 4. d4
{[%clk 00:03:06]} cxd4 {[%clk 00:03:04]} {[%emt 00:00:02]} 5. cxd4 {[%clk
00:03:07]} g6 {[%clk 00:03:06]} 6. Nc3 {[%clk 00:03:08]} Bg7 {[%clk 00:03:07]}
7. h3 {[%clk 00:03:08]} {[%emt 00:00:01]} Nf6 {[%clk 00:03:08]} {[%emt
00:00:02]} 8. Bd3 {[%clk 00:03:08]} {[%emt 00:00:01]} O-O {[%clk 00:03:06]}
{[%emt 00:00:04]} 9. O-O {[%clk 00:03:09]} {[%emt 00:00:01]} e5 {[%clk
00:02:58]} {[%emt 00:00:11]} 10. d5 {[%clk 00:03:05]} {[%emt 00:00:05]} Nd4
{[%clk 00:02:59]} 11. Nxd4 {[%clk 00:02:52]} {[%emt 00:00:15]} exd4 {[%clk
00:03:00]} {[%emt 00:00:01]} 12. Ne2 {[%clk 00:02:54]} Nd7 {[%clk 00:03:01]} 13.
Bb1 {[%clk 00:02:15]} {[%emt 00:00:40]} Qb6 {[%clk 00:02:44]} {[%emt 00:00:20]}
14. Nf4 {[%clk 00:02:05]} {[%emt 00:00:12]} Ne5 {[%clk 00:02:06]} {[%emt
00:00:40]} 15. Nd3 {[%clk 00:02:00]} {[%emt 00:00:07]} f5 {[%clk 00:02:02]}
{[%emt 00:00:06]} 16. f3 {[%clk 00:01:40]} {[%emt 00:00:21]} Nc4 {[%clk
00:01:48]} {[%emt 00:00:16]} 17. Qb3 {[%clk 00:01:29]} {[%emt 00:00:13]} Qxb3
{[%clk 00:01:24]} {[%emt 00:00:27]} 18. axb3 {[%clk 00:01:30]} Ne3 {[%clk
00:01:25]} {[%emt 00:00:01]} 19. Re1 {[%clk 00:01:27]} {[%emt 00:00:05]} fxe4
{[%clk 00:00:57]} {[%emt 00:00:30]} 20. fxe4 {[%clk 00:01:27]} {[%emt
00:00:02]} Bd7 {[%clk 00:00:53]} {[%emt 00:00:06]} 21. Nf2 {[%clk 00:01:02]}
{[%emt 00:00:27]} Rf7 {[%clk 00:00:36]} {[%emt 00:00:20]} 22. Bd3 {[%clk
00:00:38]} {[%emt 00:00:26]} Raf8 {[%clk 00:00:36]} {[%emt 00:00:02]} 23. Nh1
{[%clk 00:00:35]} {[%emt 00:00:05]} a6 {[%clk 00:00:28]} {[%emt 00:00:10]} 24.
Bd2 {[%clk 00:00:35]} {[%emt 00:00:01]} g5 {[%clk 00:00:26]} {[%emt 00:00:04]}
25. Ng3 {[%clk 00:00:31]} {[%emt 00:00:06]} g4 {[%clk 00:00:18]} {[%emt
00:00:10]} 26. h4 {[%clk 00:00:27]} {[%emt 00:00:06]} Bf6 {[%clk 00:00:19]} 27.
Bxe3 {[%clk 00:00:14]} {[%emt 00:00:15]} dxe3 28. Nf5 Bxf5 {[%clk 00:00:20]}
{[%emt 00:00:02]} 29. exf5 {[%clk 00:00:17]} Bxb2 {[%clk 00:00:20]} {[%emt
00:00:02]} 30. Ra2 {[%clk 00:00:15]} {[%emt 00:00:04]} Bd4 {[%clk 00:00:21]} 31.
g3 {[%clk 00:00:09]} {[%emt 00:00:08]} Kg7 {[%clk 00:00:21]} {[%emt 00:00:01]}
32. Kg2 {[%clk 00:00:10]} Kf6 {[%clk 00:00:19]} {[%emt 00:00:04]} 33. Rc2
{[%clk 00:00:11]} {[%emt 00:00:02]} Ke5 {[%clk 00:00:20]} {[%emt 00:00:01]} 34.
Rf1 {[%clk 00:00:05]} {[%emt 00:00:08]} Kxd5 {[%clk 00:00:21]} {[%emt
00:00:02]} 35. Bc4+ Ke5 {[%emt 00:00:01]} 36. Bxf7 {[%clk 00:00:08]} Rxf7
{[%clk 00:00:22]} 37. Rf4 {[%clk 00:00:09]} {[%emt 00:00:01]} Bc5 {[%clk
00:00:21]} {[%emt 00:00:02]} 38. b4 {[%clk 00:00:09]} {[%emt 00:00:02]} Bb6
{[%clk 00:00:21]} {[%emt 00:00:02]} 39. Kf1 {[%clk 00:00:07]} {[%emt 00:00:04]}
d5 {[%clk 00:00:22]} 40. Ke2 {[%clk 00:00:08]} {[%emt 00:00:01]} d4 {[%clk
00:00:24]} 41. Rc8 {[%clk 00:00:09]} Rd7 {[%clk 00:00:22]} {[%emt 00:00:04]} 42.
Kd3 {[%clk 00:00:09]} {[%emt 00:00:02]} Bc7 {[%clk 00:00:21]} {[%emt 00:00:03]}
43. Re8+ {[%clk 00:00:10]} Kf6 {[%clk 00:00:21]} {[%emt 00:00:02]} 44. Re6+
{[%clk 00:00:11]} 1-0

[Event "Blixt-SM 2021"]
[Site "Elite Hotel Marina Plaza, Kungstorget 6, Helsingborg, Sweden"]
[Date "2021.11.14"]
[Round "3.4"]
[White "Elsner, Yair"]
[Black "Neretljak, Nedzad"]
[Result "0-1"]
[TimeControl "3 minutes + 2 seconds per move."]
[WhiteFideId "2838230"]
[BlackFideId "1713132"]
[WhiteElo "1629"]
[BlackElo "2148"]

1. e4 {[%clk 00:03:02]} e6 {[%clk 00:03:04]} 2. d4 {[%clk 00:03:03]} {[%emt
00:00:03]} d5 {[%clk 00:03:05]} 3. Bd3 {[%clk 00:03:04]} {[%emt 00:00:02]} Nf6
{[%clk 00:03:06]} {[%emt 00:00:01]} 4. e5 {[%clk 00:03:04]} {[%emt 00:00:02]}
Nfd7 {[%clk 00:03:07]} 5. Ne2 {[%clk 00:03:04]} {[%emt 00:00:03]} c5 {[%clk
00:03:07]} {[%emt 00:00:02]} 6. c3 {[%clk 00:03:05]} {[%emt 00:00:01]} Nc6
{[%clk 00:03:08]} 7. a3 {[%clk 00:03:05]} {[%emt 00:00:02]} a5 {[%clk
00:03:04]} {[%emt 00:00:05]} 8. O-O {[%clk 00:02:58]} {[%emt 00:00:09]} Be7
{[%clk 00:03:05]} 9. f4 {[%clk 00:02:42]} {[%emt 00:00:18]} g6 {[%clk
00:03:06]} 10. Be3 {[%clk 00:02:32]} {[%emt 00:00:12]} a4 {[%clk 00:03:03]}
{[%emt 00:00:05]} 11. Qe1 {[%clk 00:02:07]} {[%emt 00:00:27]} c4 {[%clk
00:03:02]} {[%emt 00:00:03]} 12. Bc2 {[%clk 00:02:07]} {[%emt 00:00:02]} b5
{[%clk 00:03:03]} 13. Nd2 {[%clk 00:02:05]} {[%emt 00:00:04]} Bb7 {[%clk
00:02:53]} {[%emt 00:00:12]} 14. Qf2 {[%clk 00:02:01]} {[%emt 00:00:06]} Qc7
{[%clk 00:02:53]} {[%emt 00:00:02]} 15. g4 {[%clk 00:01:57]} {[%emt 00:00:06]}
Na5 {[%clk 00:02:43]} {[%emt 00:00:13]} 16. Ng3 {[%clk 00:01:56]} {[%emt
00:00:04]} O-O-O {[%clk 00:02:41]} {[%emt 00:00:03]} 17. Kh1 {[%clk 00:01:31]}
{[%emt 00:00:27]} h6 {[%clk 00:02:35]} {[%emt 00:00:08]} 18. f5 {[%clk
00:01:20]} {[%emt 00:00:13]} gxf5 {[%clk 00:02:27]} {[%emt 00:00:10]} 19. gxf5
{[%clk 00:01:20]} {[%emt 00:00:02]} Bg5 {[%clk 00:02:21]} {[%emt 00:00:08]} 20.
Nf3 {[%clk 00:01:16]} {[%emt 00:00:07]} Rdg8 {[%clk 00:02:17]} {[%emt
00:00:06]} 21. Rg1 {[%clk 00:01:06]} {[%emt 00:00:12]} Nb3 {[%clk 00:02:06]}
{[%emt 00:00:13]} 22. Bxb3 {[%clk 00:00:58]} {[%emt 00:00:10]} cxb3 {[%clk
00:02:03]} {[%emt 00:00:04]} 23. h4 {[%clk 00:00:54]} {[%emt 00:00:06]} Bxe3
{[%clk 00:02:04]} {[%emt 00:00:02]} 24. Qxe3 {[%clk 00:00:55]} Rg4 {[%clk
00:02:02]} {[%emt 00:00:04]} 25. Rg2 {[%clk 00:00:30]} {[%emt 00:00:27]} Rhg8
{[%clk 00:01:57]} {[%emt 00:00:06]} 26. Rag1 {[%clk 00:00:29]} {[%emt
00:00:04]} Qc4 {[%clk 00:01:52]} {[%emt 00:00:07]} 27. fxe6 {[%clk 00:00:27]}
{[%emt 00:00:04]} fxe6 {[%clk 00:01:53]} {[%emt 00:00:01]} 28. Nh5 {[%clk
00:00:23]} {[%emt 00:00:06]} Rxg2 {[%clk 00:01:51]} {[%emt 00:00:03]} 29. Rxg2
{[%clk 00:00:24]} Qf1+ {[%clk 00:01:51]} {[%emt 00:00:03]} 30. Qg1 {[%clk
00:00:20]} {[%emt 00:00:07]} Qxg1+ {[%clk 00:01:40]} {[%emt 00:00:13]} 31. Kxg1
{[%clk 00:00:19]} {[%emt 00:00:03]} Rxg2+ {[%clk 00:01:36]} {[%emt 00:00:06]}
32. Kxg2 {[%clk 00:00:20]} {[%emt 00:00:01]} Nb6 {[%clk 00:01:37]} 33. Nd2
{[%clk 00:00:20]} {[%emt 00:00:03]} Kd7 {[%clk 00:01:34]} {[%emt 00:00:05]} 34.
Kf3 {[%clk 00:00:21]} Ke7 {[%clk 00:01:34]} {[%emt 00:00:01]} 35. Kg4 {[%clk
00:00:20]} {[%emt 00:00:03]} Bc6 {[%clk 00:01:35]} {[%emt 00:00:02]} 36. Nf6
{[%clk 00:00:20]} {[%emt 00:00:01]} Nc4 {[%clk 00:01:31]} {[%emt 00:00:06]} 37.
Nxc4 {[%clk 00:00:20]} {[%emt 00:00:03]} dxc4 {[%clk 00:01:32]} 38. Kh5 {[%clk
00:00:20]} {[%emt 00:00:01]} b4 {[%clk 00:01:30]} {[%emt 00:00:04]} 39. cxb4
{[%clk 00:00:04]} {[%emt 00:00:18]} c3 {[%clk 00:01:31]} {[%emt 00:00:01]} 0-1

[Event "Blixt-SM 2021"]
[Site "Elite Hotel Marina Plaza, Kungstorget 6, Helsingborg, Sweden"]
[Date "2021.11.14"]
[Round "5.2"]
[White "Rasti, Arvin"]
[Black "Storme, Isak"]
[Result "1-0"]
[TimeControl "3 minutes + 2 seconds per move."]
[BlackTitle "FM"]
[WhiteFideId "1741160"]
[BlackFideId "1728113"]
[WhiteElo "2054"]
[BlackElo "2037"]

1. d4 {[%clk 00:03:02]} Nf6 {[%clk 00:03:02]} {[%emt 00:00:02]} 2. Nf3 {[%clk
00:03:03]} {[%emt 00:00:02]} d5 {[%clk 00:03:01]} {[%emt 00:00:02]} 3. c4
{[%clk 00:03:04]} {[%emt 00:00:01]} e6 {[%clk 00:03:02]} {[%emt 00:00:02]} 4.
g3 {[%clk 00:03:04]} {[%emt 00:00:02]} Bb4+ {[%clk 00:03:01]} {[%emt 00:00:03]}
5. Bd2 {[%clk 00:03:05]} {[%emt 00:00:01]} Be7 {[%clk 00:03:01]} 6. Bg2 {[%clk
00:03:06]} {[%emt 00:00:01]} O-O {[%clk 00:03:01]} {[%emt 00:00:02]} 7. O-O
{[%clk 00:03:05]} {[%emt 00:00:04]} c6 {[%clk 00:03:01]} {[%emt 00:00:01]} 8.
Qc2 {[%clk 00:03:02]} {[%emt 00:00:06]} b6 {[%clk 00:03:01]} {[%emt 00:00:02]}
9. Bf4 {[%clk 00:02:41]} {[%emt 00:00:23]} Bb7 {[%clk 00:02:56]} {[%emt
00:00:07]} 10. Nbd2 {[%clk 00:02:41]} {[%emt 00:00:02]} Nbd7 {[%clk 00:02:46]}
{[%emt 00:00:11]} 11. Rac1 {[%clk 00:02:31]} {[%emt 00:00:12]} Nh5 {[%clk
00:02:25]} {[%emt 00:00:23]} 12. Be3 {[%clk 00:02:31]} {[%emt 00:00:02]} Nhf6
{[%clk 00:02:24]} {[%emt 00:00:03]} 13. Bf4 {[%clk 00:02:22]} {[%emt 00:00:12]}
Nh5 {[%clk 00:02:24]} {[%emt 00:00:01]} 14. cxd5 {[%clk 00:02:14]} {[%emt
00:00:10]} Nxf4 {[%clk 00:02:20]} {[%emt 00:00:05]} 15. gxf4 {[%clk 00:02:07]}
{[%emt 00:00:09]} cxd5 {[%clk 00:02:18]} {[%emt 00:00:04]} 16. Ne5 {[%clk
00:02:00]} {[%emt 00:00:09]} Nxe5 {[%clk 00:02:15]} {[%emt 00:00:05]} 17. fxe5
{[%clk 00:01:59]} {[%emt 00:00:04]} Ba6 {[%clk 00:02:08]} {[%emt 00:00:09]} 18.
Bf3 {[%clk 00:01:43]} {[%emt 00:00:18]} Qd7 {[%clk 00:02:06]} {[%emt 00:00:04]}
19. Rfd1 {[%clk 00:01:32]} {[%emt 00:00:12]} f6 {[%clk 00:01:45]} {[%emt
00:00:23]} 20. e4 {[%clk 00:01:22]} {[%emt 00:00:13]} fxe5 {[%clk 00:01:32]}
{[%emt 00:00:15]} 21. exd5 {[%clk 00:01:16]} {[%emt 00:00:08]} exd5 {[%clk
00:01:10]} {[%emt 00:00:23]} 22. Qb3 {[%clk 00:01:17]} {[%emt 00:00:01]} Rad8
{[%clk 00:00:51]} {[%emt 00:00:21]} 23. dxe5 {[%clk 00:01:13]} {[%emt
00:00:07]} Kh8 {[%clk 00:00:47]} {[%emt 00:00:05]} 24. Bg2 {[%clk 00:01:08]}
{[%emt 00:00:07]} Bg5 {[%clk 00:00:45]} {[%emt 00:00:03]} 25. Qg3 {[%clk
00:00:49]} {[%emt 00:00:22]} Bf4 {[%clk 00:00:33]} {[%emt 00:00:14]} 26. Qc3
{[%clk 00:00:34]} {[%emt 00:00:17]} d4 {[%clk 00:00:27]} {[%emt 00:00:09]} 27.
Qc6 {[%clk 00:00:26]} {[%emt 00:00:10]} Qxc6 {[%clk 00:00:07]} {[%emt
00:00:21]} 28. Rxc6 {[%clk 00:00:18]} {[%emt 00:00:11]} Bxe5 {[%clk 00:00:07]}
{[%emt 00:00:02]} 29. Re1 {[%clk 00:00:16]} {[%emt 00:00:04]} Bf6 {[%clk
00:00:07]} {[%emt 00:00:01]} 30. Rc7 {[%clk 00:00:14]} {[%emt 00:00:04]} d3
{[%clk 00:00:07]} {[%emt 00:00:02]} 31. Rxa7 {[%clk 00:00:13]} {[%emt
00:00:04]} Bb5 {[%clk 00:00:08]} 32. a4 {[%clk 00:00:14]} Bd7 {[%clk 00:00:07]}
{[%emt 00:00:03]} 33. Be4 {[%clk 00:00:15]} {[%emt 00:00:02]} Bg4 {[%clk
00:00:07]} {[%emt 00:00:02]} 34. f3 {[%clk 00:00:16]} {[%emt 00:00:01]} Bh5
{[%clk 00:00:08]} 35. Kg2 {[%clk 00:00:17]} {[%emt 00:00:01]} Bg5 {[%clk
00:00:08]} {[%emt 00:00:01]} 36. Rd1 {[%clk 00:00:14]} {[%emt 00:00:05]} Rf7
{[%clk 00:00:07]} {[%emt 00:00:03]} 37. Rxf7 Bxf7 {[%clk 00:00:08]} 38. b4
{[%clk 00:00:11]} {[%emt 00:00:06]} Be3 {[%clk 00:00:07]} {[%emt 00:00:02]} 39.
Nf1 {[%clk 00:00:11]} {[%emt 00:00:02]} Bf4 {[%clk 00:00:04]} {[%emt 00:00:05]}
40. Rxd3 {[%clk 00:00:11]} {[%emt 00:00:02]} Rxd3 {[%clk 00:00:03]} {[%emt
00:00:03]} 41. Bxd3 {[%clk 00:00:12]} Bd6 {[%clk 00:00:04]} {[%emt 00:00:02]}
42. a5 {[%clk 00:00:10]} {[%emt 00:00:04]} bxa5 {[%emt 00:00:03]} 1-0

[Event "Blixt-SM 2021"]
[Site "Elite Hotel Marina Plaza, Kungstorget 6, Helsingborg, Sweden"]
[Date "2021.11.14"]
[Round "6.9"]
[White "Nimander, Max"]
[Black "Rosell, Tomas"]
[Result "1-0"]
[TimeControl "3 minutes + 2 seconds per move."]
[WhiteFideId "1746677"]
[BlackFideId "1707132"]
[WhiteElo "1917"]
[BlackElo "2070"]

1. e4 {[%clk 00:03:02]} c5 {[%clk 00:03:03]} {[%emt 00:00:02]} 2. c3 {[%clk
00:03:02]} {[%emt 00:00:02]} d6 {[%clk 00:02:56]} {[%emt 00:00:08]} 3. d4
{[%clk 00:03:02]} {[%emt 00:00:02]} Nf6 {[%clk 00:02:58]} 4. Bd3 {[%clk
00:02:47]} {[%emt 00:00:17]} g6 {[%clk 00:02:59]} 5. Nf3 {[%clk 00:02:39]}
{[%emt 00:00:11]} Bg7 {[%clk 00:02:59]} {[%emt 00:00:02]} 6. O-O {[%clk
00:02:20]} {[%emt 00:00:21]} O-O {[%clk 00:02:59]} {[%emt 00:00:02]} 7. Re1
{[%clk 00:02:15]} {[%emt 00:00:07]} Nc6 {[%clk 00:03:00]} 8. Bc4 {[%clk
00:02:05]} {[%emt 00:00:12]} Bg4 {[%clk 00:02:52]} {[%emt 00:00:10]} 9. h3
{[%clk 00:01:47]} {[%emt 00:00:20]} Bxf3 {[%clk 00:02:52]} {[%emt 00:00:02]} 10.
gxf3 {[%clk 00:01:38]} {[%emt 00:00:12]} cxd4 {[%clk 00:02:47]} {[%emt
00:00:07]} 11. cxd4 {[%clk 00:01:38]} Rc8 {[%clk 00:02:40]} {[%emt 00:00:10]}
12. Bb3 {[%clk 00:01:33]} {[%emt 00:00:07]} Qa5 {[%clk 00:02:19]} {[%emt
00:00:23]} 13. f4 {[%clk 00:01:20]} {[%emt 00:00:14]} Nxd4 {[%clk 00:02:10]}
{[%emt 00:00:12]} 14. Bd2 {[%clk 00:00:51]} {[%emt 00:00:32]} Qh5 {[%clk
00:02:05]} {[%emt 00:00:07]} 15. Qxh5 {[%clk 00:00:32]} {[%emt 00:00:20]} Nxh5
{[%clk 00:02:06]} 16. Kg2 {[%clk 00:00:28]} {[%emt 00:00:07]} Nc2 {[%clk
00:01:58]} {[%emt 00:00:10]} 17. Bxc2 {[%clk 00:00:26]} {[%emt 00:00:04]} Rxc2
{[%clk 00:01:59]} 18. Bc3 {[%clk 00:00:27]} Bxc3 {[%clk 00:01:58]} {[%emt
00:00:04]} 19. Nxc3 {[%clk 00:00:26]} {[%emt 00:00:02]} Rxb2 {[%clk 00:01:55]}
{[%emt 00:00:05]} 20. Kf3 {[%clk 00:00:20]} {[%emt 00:00:08]} Rc2 {[%clk
00:01:24]} {[%emt 00:00:33]} 21. Nd5 {[%clk 00:00:19]} {[%emt 00:00:04]} e6
{[%clk 00:01:22]} {[%emt 00:00:04]} 22. Ne3 {[%clk 00:00:19]} {[%emt 00:00:01]}
Rc3 {[%clk 00:01:20]} {[%emt 00:00:04]} 23. Red1 {[%clk 00:00:19]} {[%emt
00:00:02]} Rc6 {[%clk 00:01:12]} {[%emt 00:00:10]} 24. Rab1 {[%clk 00:00:15]}
{[%emt 00:00:07]} b6 {[%clk 00:01:13]} 25. a4 {[%clk 00:00:16]} f5 {[%clk
00:00:59]} {[%emt 00:00:16]} 26. e5 {[%clk 00:00:12]} {[%emt 00:00:06]} d5
{[%clk 00:00:53]} {[%emt 00:00:08]} 27. Rd4 {[%clk 00:00:06]} {[%emt 00:00:07]}
Rfc8 {[%clk 00:00:48]} {[%emt 00:00:07]} 28. Rdb4 {[%clk 00:00:06]} {[%emt
00:00:02]} Kf7 {[%clk 00:00:47]} {[%emt 00:00:03]} 29. Nf1 {[%clk 00:00:07]}
{[%emt 00:00:01]} Rc4 {[%clk 00:00:46]} {[%emt 00:00:04]} 30. Nd2 {[%clk
00:00:05]} {[%emt 00:00:04]} Rxb4 {[%clk 00:00:44]} {[%emt 00:00:04]} 31. Rxb4
{[%clk 00:00:05]} {[%emt 00:00:01]} Rc3+ {[%clk 00:00:45]} 32. Ke2 {[%emt
00:00:08]} Rc5 {[%clk 00:00:38]} {[%emt 00:00:03]} 33. Nb3 {[%clk 00:00:06]}
{[%emt 00:00:01]} Rc3 {[%clk 00:00:36]} {[%emt 00:00:04]} 34. a5 {[%clk
00:00:07]} {[%emt 00:00:02]} bxa5 {[%clk 00:00:15]} {[%emt 00:00:22]} 35. Rb7+
{[%clk 00:00:08]} Kg8 {[%clk 00:00:15]} {[%emt 00:00:02]} 36. Nxa5 {[%clk
00:00:08]} {[%emt 00:00:02]} Nxf4+ {[%emt 00:00:02]} 37. Kd2 Rd3+ {[%clk
00:00:10]} {[%emt 00:00:06]} 38. Kc2 {[%clk 00:00:11]} Rf3 {[%clk 00:00:09]}
{[%emt 00:00:04]} 39. Nc6 {[%clk 00:00:11]} {[%emt 00:00:02]} Rxf2+ {[%clk
00:00:07]} {[%emt 00:00:04]} 40. Kb3 {[%clk 00:00:13]} Nd3 {[%emt 00:00:06]}
1-0

[Event "Blixt-SM 2021"]
[Site "Elite Hotel Marina Plaza, Kungstorget 6, Helsingborg, Sweden"]
[Date "2021.11.14"]
[Round "8.7"]
[White "Troedsson, Anton"]
[Black "Agovic, Seifo"]
[Result "1-0"]
[TimeControl "3 minutes + 2 seconds per move."]
[WhiteFideId "1746006"]
[BlackFideId "1702360"]
[WhiteElo "2104"]
[BlackElo "1910"]

1. Nf3 {[%clk 00:03:03]} {[%emt 00:31:53]} Nf6 {[%clk 00:01:16]} {[%emt
00:01:49]} 2. b3 {[%clk 00:03:04]} {[%emt 00:00:01]} e6 {[%clk 00:01:17]} 3.
Bb2 {[%clk 00:03:05]} Be7 {[%clk 00:01:18]} 4. g3 {[%clk 00:03:06]} {[%emt
00:00:01]} O-O {[%clk 00:01:19]} 5. Bg2 d5 6. O-O {[%clk 00:03:07]} {[%emt
00:00:02]} c6 {[%clk 00:01:23]} 7. d4 {[%clk 00:03:07]} {[%emt 00:00:01]} b6
{[%clk 00:01:24]} 8. Nbd2 {[%clk 00:03:08]} Bb7 {[%clk 00:01:26]} 9. c4 c5 10.
e3 {[%clk 00:03:10]} {[%emt 00:00:01]} cxd4 {[%clk 00:01:28]} {[%emt 00:00:01]}
11. Nxd4 {[%clk 00:03:10]} {[%emt 00:00:01]} Nc6 {[%clk 00:01:29]} {[%emt
00:00:01]} 12. Rc1 {[%clk 00:03:10]} {[%emt 00:00:01]} Nxd4 13. Bxd4 {[%clk
00:03:11]} dxc4 {[%clk 00:01:32]} {[%emt 00:00:01]} 14. Bxb7 {[%clk 00:03:11]}
{[%emt 00:00:02]} Rb8 {[%clk 00:01:33]} {[%emt 00:00:01]} 15. Bg2 {[%clk
00:03:11]} {[%emt 00:00:02]} cxb3 {[%clk 00:01:34]} {[%emt 00:00:02]} 16. axb3
{[%clk 00:03:09]} {[%emt 00:00:03]} Bc5 {[%clk 00:01:34]} {[%emt 00:00:01]} 17.
Nf3 {[%clk 00:03:06]} {[%emt 00:00:05]} Bxd4 {[%clk 00:01:08]} {[%emt
00:00:43]} 18. Nxd4 {[%clk 00:03:06]} {[%emt 00:00:01]} Nd5 {[%clk 00:01:09]}
{[%emt 00:00:02]} 19. Nc6 {[%clk 00:03:06]} {[%emt 00:00:01]} 1-0

[Event "Blixt-SM 2021"]
[Site "Elite Hotel Marina Plaza, Kungstorget 6, Helsingborg, Sweden"]
[Date "2021.11.14"]
[Round "10.6"]
[White "Mauritsson, Sebastian"]
[Black "Rasti, Arvin"]
[Result "1-0"]
[TimeControl "3 minutes + 2 seconds per move."]
[WhiteTitle "FM"]
[WhiteFideId "1707892"]
[BlackFideId "1741160"]
[WhiteElo "2390"]
[BlackElo "2054"]

1. e4 {[%clk 00:03:04]} {[%emt 00:02:00]} e6 {[%clk 00:03:02]} {[%emt
00:00:02]} 2. d4 {[%clk 00:03:05]} d5 {[%clk 00:03:03]} {[%emt 00:00:02]} 3.
Nc3 {[%clk 00:03:06]} Nf6 {[%clk 00:03:04]} {[%emt 00:00:01]} 4. Bg5 {[%clk
00:03:07]} dxe4 {[%clk 00:02:58]} {[%emt 00:00:08]} 5. Nxe4 {[%clk 00:03:07]}
{[%emt 00:00:02]} Be7 {[%clk 00:02:59]} 6. Bxf6 {[%clk 00:03:07]} {[%emt
00:00:03]} gxf6 {[%clk 00:03:00]} {[%emt 00:00:02]} 7. Qd3 {[%clk 00:03:04]}
{[%emt 00:00:05]} f5 {[%clk 00:02:55]} {[%emt 00:00:07]} 8. Nc3 {[%clk
00:03:05]} a6 {[%clk 00:02:52]} {[%emt 00:00:05]} 9. O-O-O {[%clk 00:03:02]}
{[%emt 00:00:05]} b5 {[%clk 00:02:50]} {[%emt 00:00:04]} 10. d5 {[%clk
00:03:00]} {[%emt 00:00:05]} b4 {[%clk 00:02:40]} {[%emt 00:00:12]} 11. Nce2
{[%clk 00:02:55]} {[%emt 00:00:06]} e5 {[%clk 00:02:25]} {[%emt 00:00:17]} 12.
Ng3 {[%clk 00:02:53]} {[%emt 00:00:04]} e4 {[%clk 00:01:50]} {[%emt 00:00:36]}
13. Qd4 {[%clk 00:02:53]} {[%emt 00:00:03]} Bf6 {[%clk 00:01:51]} {[%emt
00:00:01]} 14. Qxb4 {[%clk 00:02:51]} {[%emt 00:00:04]} a5 {[%clk 00:01:39]}
{[%emt 00:00:13]} 15. Qa3 {[%clk 00:02:45]} {[%emt 00:00:08]} Qd6 {[%clk
00:01:30]} {[%emt 00:00:11]} 16. Qxd6 {[%clk 00:02:41]} {[%emt 00:00:07]} cxd6
{[%clk 00:01:32]} 17. Nh5 {[%clk 00:02:41]} {[%emt 00:00:02]} Bg5+ {[%clk
00:01:24]} {[%emt 00:00:10]} 18. Kb1 {[%clk 00:02:40]} {[%emt 00:00:03]} O-O
{[%clk 00:01:11]} {[%emt 00:00:15]} 19. Nh3 {[%clk 00:02:38]} {[%emt 00:00:04]}
Be7 {[%clk 00:01:09]} {[%emt 00:00:04]} 20. N3f4 {[%clk 00:02:36]} {[%emt
00:00:04]} Ba6 {[%clk 00:01:10]} {[%emt 00:00:01]} 21. Rg1 {[%clk 00:02:27]}
{[%emt 00:00:11]} Nd7 {[%clk 00:00:55]} {[%emt 00:00:17]} 22. Bxa6 {[%clk
00:02:25]} {[%emt 00:00:04]} Rxa6 {[%clk 00:00:56]} 23. g4 {[%clk 00:02:25]}
{[%emt 00:00:01]} fxg4 {[%clk 00:00:50]} {[%emt 00:00:09]} 24. Rxg4+ {[%clk
00:02:27]} {[%emt 00:00:01]} Kh8 {[%clk 00:00:50]} 25. Rdg1 {[%clk 00:02:22]}
{[%emt 00:00:06]} a4 {[%clk 00:00:34]} {[%emt 00:00:19]} 26. R1g3 {[%clk
00:02:14]} {[%emt 00:00:10]} Rb6 {[%clk 00:00:29]} {[%emt 00:00:07]} 27. Rg7
{[%clk 00:02:11]} {[%emt 00:00:05]} a3 {[%clk 00:00:26]} {[%emt 00:00:06]} 28.
b3 {[%clk 00:02:12]} Nf6 {[%clk 00:00:20]} {[%emt 00:00:09]} 29. c4 {[%clk
00:02:07]} {[%emt 00:00:08]} Nd7 {[%clk 00:00:16]} {[%emt 00:00:05]} 30. Kc2
{[%clk 00:02:06]} {[%emt 00:00:02]} Nc5 {[%clk 00:00:15]} {[%emt 00:00:04]} 31.
Rh3 {[%clk 00:02:00]} {[%emt 00:00:08]} h6 {[%clk 00:00:07]} {[%emt 00:00:09]}
32. Rg4 {[%clk 00:01:57]} {[%emt 00:00:05]} Bg5 {[%clk 00:00:07]} {[%emt
00:00:02]} 33. Ng3 {[%clk 00:01:52]} {[%emt 00:00:08]} Kg7 {[%clk 00:00:07]}
{[%emt 00:00:02]} 34. Nf5+ {[%clk 00:01:50]} {[%emt 00:00:04]} Kf6 {[%clk
00:00:06]} {[%emt 00:00:01]} 35. Nxh6 {[%clk 00:01:50]} {[%emt 00:00:03]} Rh8
{[%clk 00:00:06]} {[%emt 00:00:03]} 36. Nh5+ {[%clk 00:01:46]} {[%emt
00:00:06]} Kg6 {[%clk 00:00:07]} {[%emt 00:00:01]} 37. Rxg5+ {[%clk 00:01:40]}
{[%emt 00:00:08]} Kxg5 {[%clk 00:00:06]} {[%emt 00:00:03]} 38. Nxf7+ {[%clk
00:01:41]} Kg4 {[%clk 00:00:07]} 39. Rg3+ {[%clk 00:01:39]} {[%emt 00:00:05]}
Kxh5 {[%clk 00:00:08]} 40. Nxh8 {[%clk 00:01:40]} Rb8 {[%clk 00:00:07]} {[%emt
00:00:03]} 41. Nf7 {[%clk 00:01:33]} {[%emt 00:00:09]} Rf8 {[%clk 00:00:09]}
{[%emt 00:00:01]} 42. Rg7 {[%clk 00:01:29]} {[%emt 00:00:06]} Kh4 {[%clk
00:00:06]} {[%emt 00:00:05]} 43. b4 {[%clk 00:01:30]} Na6 {[%clk 00:00:07]} 44.
Kc3 {[%clk 00:01:30]} {[%emt 00:00:02]} Nb8 {[%clk 00:00:03]} {[%emt 00:00:05]}
45. c5 {[%clk 00:01:27]} {[%emt 00:00:05]} dxc5 {[%clk 00:00:04]} {[%emt
00:00:01]} 46. bxc5 {[%clk 00:01:29]} Nd7 {[%clk 00:00:04]} {[%emt 00:00:02]}
47. Kd4 {[%clk 00:01:29]} {[%emt 00:00:02]} Nf6 {[%clk 00:00:03]} {[%emt
00:00:03]} 48. d6 {[%clk 00:01:26]} {[%emt 00:00:05]} Ng4 {[%clk 00:00:03]}
{[%emt 00:00:02]} 49. d7 {[%clk 00:01:23]} {[%emt 00:00:06]} Nxf2 {[%clk
00:00:03]} {[%emt 00:00:02]} 1-0